bitfinex/quotes_BTCUSD_20241024
["timestamp","ask_amount","ask_price","bid_price","bid_amount"]
[1729733022415,0.63263842,67380.0,67379.0,0.44524]
[1729733024385,0.63763842,67380.0,67379.0,0.44524]
[1729733024595,0.78761234,67380.0,67379.0,0.44524]
[1729733025347,0.95651999,67380.0,67379.0,0.44524]
[1729733025568,0.95651999,67380.0,67379.0,0.41929521]
[1729733025569,1.21261238,67380.0,67379.0,0.41929521]
[1729733025827,1.0626312,67380.0,67379.0,0.41929521]
[1729733026046,1.01784607,67380.0,67379.0,0.41929521]
[1729733026297,1.01784607,67380.0,67379.0,0.40379101]
[1729733026510,1.02784607,67380.0,67379.0,0.21855817]
[1729733027116,1.17784217,67380.0,67379.0,0.19955817]
[1729733027377,1.02784607,67380.0,67379.0,0.05984928]
[1729733027587,1.02784607,67380.0,67362.0,0.22336307]
[1729733027588,0.212759,67363.0,67362.0,0.22336307]
[1729733027798,0.79604165,67363.0,67362.0,0.22336307]
[1729733028008,0.79604165,67363.0,67362.0,0.000826]
[1729733028441,0.90710206,67363.0,67362.0,0.000826]
[1729733028651,0.79604165,67363.0,67362.0,0.000826]
[1729733029451,0.88485832,67363.0,67362.0,0.000826]
[1729733030573,0.79604165,67363.0,67362.0,0.000826]
[1729733031358,0.79605369,67363.0,67362.0,0.000826]
[1729733031770,0.7998422,67363.0,67362.0,0.000826]
[1729733033396,0.63595897,67363.0,67362.0,0.000826]
[1729733034617,0.70251464,67363.0,67362.0,0.000826]
[1729733035279,0.79974829,67363.0,67362.0,0.000826]
[1729733035530,0.82188758,67363.0,67362.0,0.000826]
[1729733035755,0.91067934,67363.0,67362.0,0.000826]
[1729733036208,0.79974829,67363.0,67362.0,0.000826]
[1729733037348,0.91073799,67363.0,67362.0,0.000826]
[1729733037599,0.79974829,67363.0,67362.0,0.000826]
[1729733039171,0.89974829,67363.0,67362.0,0.000826]
[1729733039885,0.73084064,67363.0,67362.0,0.000826]
[1729733040109,0.89974829,67363.0,67362.0,0.000826]
[1729733041281,0.82274829,67363.0,67362.0,0.000826]
[1729733041521,0.2,67363.0,67362.0,0.000826]
[1729733041753,0.2,67363.0,67362.0,0.119587]
[1729733041754,0.1,67363.0,67362.0,0.119587]
[1729733041999,0.1,67363.0,67362.0,0.197787]
[1729733042993,0.1,67363.0,67362.0,0.524376]
[1729733043218,0.1,67363.0,67362.0,0.643137]
[1729733043450,0.1,67363.0,67362.0,0.831737]
[1729733043736,0.1,67363.0,67362.0,0.836737]
[1729733043971,0.1,67363.0,67362.0,1.01024081]
[1729733044948,0.1,67363.0,67362.0,1.01488416]
[1729733045194,0.07525114,67363.0,67362.0,1.01488416]
[1729733045453,0.22253707,67377.0,67376.0,0.118736]
[1729733045700,0.22253707,67377.0,67376.0,0.196936]
[1729733045937,0.22253707,67377.0,67376.0,0.642196]
[1729733046191,0.00165,67379.0,67378.0,0.118733]
[1729733046626,0.00165,67379.0,67378.0,0.563983]
[1729733048129,0.00165,67379.0,67378.0,0.44525]
[1729733048609,0.00165,67379.0,67378.0,0.563983]
[1729733048842,0.120381,67379.0,67378.0,0.44525]
[1729733049718,0.28928865,67379.0,67378.0,0.44525]
[1729733050004,0.29128865,67379.0,67378.0,0.44525]
[1729733050227,0.39628865,67379.0,67378.0,0.44525]
[1729733050447,0.30387613,67379.0,67378.0,0.44525]
[1729733051504,0.40108092,67379.0,67378.0,0.44525]
[1729733052171,0.48974109,67379.0,67378.0,0.44525]
[1729733052678,0.40108092,67379.0,67378.0,0.44525]
[1729733052913,0.51190614,67379.0,67378.0,0.44525]
[1729733053128,0.48980258,67379.0,67378.0,0.44525]
[1729733053349,0.40109987,67379.0,67378.0,0.44525]
[1729733054220,0.48980258,67379.0,67378.0,0.44525]
[1729733055325,0.40109987,67379.0,67378.0,0.44525]
[1729733056241,0.55160368,67379.0,67378.0,0.44525]
[1729733056889,0.55165757,67379.0,67378.0,0.44525]
[1729733057995,0.55165757,67379.0,67378.0,0.03299926]
[1729733057996,0.87814593,67379.0,67378.0,0.03299926]
[1729733058222,0.125759,67363.0,67362.0,0.22336307]
[1729733058441,0.44739734,67363.0,67362.0,0.22336307]
[1729733058664,0.62396548,67363.0,67362.0,0.000826]
[1729733058899,0.55739734,67363.0,67362.0,0.000826]
[1729733060400,0.72124738,67363.0,67362.0,0.000826]
[1729733060870,0.72511721,67363.0,67362.0,0.000826]
[1729733061093,0.72511721,67363.0,67362.0,0.446176]
[1729733061321,0.57074357,67363.0,67362.0,0.446176]
[1729733061538,0.40689353,67363.0,67362.0,0.446176]
[1729733061776,0.47124963,67363.0,67362.0,0.446176]
[1729733061994,0.44905305,67363.0,67362.0,0.446176]
[1729733062718,0.12098589,67363.0,67362.0,0.446176]
[1729733063835,0.00222689,67363.0,67362.0,0.446176]
[1729733064745,0.12098589,67363.0,67362.0,0.446176]
[1729733065165,0.12298589,67363.0,67362.0,0.446176]
[1729733066483,0.12098589,67363.0,67362.0,0.446176]
[1729733066668,0.12098589,67363.0,67362.0,0.73384465]
[1729733066669,0.00222689,67363.0,67362.0,0.73384465]
[1729733066889,0.26692347,67371.0,67362.0,0.62008365]
[1729733067117,0.237472,67377.0,67362.0,0.62008365]
[1729733067118,0.0443864,67376.0,67372.0,0.118742]
[1729733067328,0.118735,67377.0,67373.0,0.3065528]
[1729733067543,0.118736,67376.0,67373.0,0.6330918]
[1729733067792,0.00222641,67377.0,67373.0,0.6330918]
[1729733068008,0.12096141,67377.0,67373.0,0.6330918]
[1729733068222,0.118738,67376.0,67373.0,0.46418415]
[1729733068675,0.12096141,67377.0,67373.0,0.564021]
[1729733069828,0.00222641,67377.0,67373.0,0.44528]
[1729733070041,0.00422641,67377.0,67373.0,0.44528]
[1729733070252,0.11874,67375.0,67374.0,0.000825]
[1729733070762,0.11874,67375.0,67374.0,0.446105]
[1729733070997,0.00222641,67377.0,67374.0,0.446105]
[1729733071208,0.118738,67375.0,67374.0,0.446105]
[1729733071422,0.00222641,67377.0,67374.0,0.446105]
[1729733071638,0.12096141,67377.0,67374.0,0.446105]
[1729733071883,0.00165,67379.0,67374.0,0.446105]
[1729733072093,0.00165,67379.0,67375.0,0.118738]
[1729733072326,0.120382,67379.0,67374.0,0.564843]
[1729733072541,0.118734,67377.0,67376.0,0.44526]
[1729733073614,0.120381,67379.0,67376.0,0.44526]
[1729733074258,0.00165,67379.0,67376.0,0.44526]
[1729733074923,0.00165,67379.0,67376.0,0.563996]
[1729733075137,0.00165,67379.0,67376.0,0.44526]
[1729733075848,0.118734,67378.0,67376.0,0.44526]
[1729733076062,0.118734,67377.0,67376.0,0.44526]
[1729733076520,0.120383,67379.0,67376.0,0.44526]
[1729733076738,0.118734,67378.0,67376.0,0.44526]
[1729733076957,0.118734,67377.0,67376.0,0.44526]
[1729733077591,0.239113,67379.0,67376.0,0.44526]
[1729733078005,0.118733,67378.0,67376.0,0.44526]
[1729733078234,0.239113,67379.0,67376.0,0.44526]
[1729733078235,0.00165,67379.0,67376.0,0.44526]
[1729733078460,0.00165,67379.0,67378.0,0.005]
[1729733078675,0.00165,67379.0,67378.0,0.34923681]
[1729733078894,0.00165,67379.0,67378.0,0.79448681]
[1729733079558,0.00165,67379.0,67378.0,0.96339446]
[1729733079781,0.00165,67379.0,67378.0,1.15359446]
[1729733080017,0.00165,67379.0,67378.0,1.17659446]
[1729733080710,0.001484,67379.0,67378.0,1.17659446]
[1729733081594,0.001484,67379.0,67378.0,1.00768681]
[1729733082731,0.001484,67379.0,67378.0,1.17659446]
[1729733085119,0.001484,67379.0,67378.0,1.00768681]
[1729733088469,0.001484,67379.0,67378.0,1.17659446]
[1729733089946,0.001484,67379.0,67378.0,1.35014404]
[1729733090178,0.001652,67385.0,67384.0,0.123722]
[1729733090428,0.001652,67385.0,67384.0,0.50997539]
[1729733090662,0.001652,67385.0,67384.0,0.95518539]
[1729733090871,0.001652,67385.0,67384.0,0.95518471]
[1729733091581,0.001652,67385.0,67384.0,0.96261072]
[1729733091800,0.001652,67385.0,67384.0,0.97343448]
[1729733092738,0.001652,67385.0,67384.0,1.07343448]
[1729733093219,0.22476242,67414.0,67384.0,1.07343448]
[1729733093220,0.22476242,67414.0,67404.0,0.005]
[1729733093468,0.22253707,67414.0,67406.0,0.123683]
[1729733093719,0.22253707,67414.0,67406.0,0.37735348]
[1729733093943,0.22253707,67414.0,67413.0,0.123671]
[1729733094393,0.118654,67423.0,67416.0,0.118665]
[1729733094845,0.120654,67423.0,67417.0,0.44499]
[1729733095103,0.1228789,67423.0,67417.0,0.44499]
[1729733095562,0.002,67419.0,67417.0,0.44499]
[1729733095785,0.002,67418.0,67417.0,0.44499]
[1729733096225,0.0022249,67423.0,67417.0,0.44499]
[1729733096679,0.0022249,67423.0,67417.0,0.563653]
[1729733096906,0.0022249,67423.0,67418.0,0.38782881]
[1729733097120,0.0022249,67423.0,67419.0,0.118659]
[1729733097270,0.0022249,67423.0,67419.0,0.56364]
[1729733097500,0.0022249,67423.0,67419.0,0.682301]
[1729733097707,0.0022249,67423.0,67419.0,0.56364]
[1729733097908,0.1,67428.0,67419.0,0.44498]
[1729733098111,0.1,67429.0,67419.0,0.44498]
[1729733098324,0.118649,67426.0,67419.0,0.563639]
[1729733098928,0.118651,67425.0,67419.0,0.44498]
[1729733099363,0.002,67424.0,67419.0,0.44498]
[1729733099528,0.002,67423.0,67419.0,0.44498]
[1729733100078,0.002,67421.0,67419.0,0.44498]
[1729733100612,0.28956665,67420.0,67419.0,0.44498]
[1729733101676,0.17090765,67420.0,67419.0,0.44498]
[1729733101881,0.28956665,67420.0,67419.0,0.44498]
[1729733102565,0.120659,67420.0,67419.0,0.44498]
[1729733102776,0.118656,67422.0,67419.0,0.44498]
[1729733102958,0.118655,67423.0,67419.0,0.44498]
[1729733103138,0.118656,67422.0,67419.0,0.44498]
[1729733103680,0.002,67423.0,67419.0,0.44498]
[1729733104326,0.002,67421.0,67419.0,0.44498]
[1729733104798,0.120659,67420.0,67419.0,0.44498]
[1729733105010,0.7295743,67420.0,67419.0,0.44498]
[1729733105257,0.56066665,67420.0,67419.0,0.44498]
[1729733105718,0.56066665,67420.0,67419.0,0.44138]
[1729733106151,0.99007811,67420.0,67419.0,0.44138]
[1729733106342,0.99172811,67420.0,67419.0,0.44138]
[1729733106563,0.99672811,67420.0,67419.0,0.02912926]
[1729733110375,0.99872811,67420.0,67419.0,0.02912926]
[1729733110612,1.00872811,67420.0,67419.0,0.0262068]
[1729733111072,1.0319597,67420.0,67419.0,0.0262068]
[1729733111502,1.07624158,67420.0,67419.0,0.0262068]
[1729733111701,1.0319597,67420.0,67419.0,0.0262068]
[1729733112118,0.007,67403.0,67402.0,0.22253707]
[1729733112320,0.56889665,67403.0,67402.0,0.22253707]
[1729733112549,0.002,67389.0,67388.0,0.22253707]
[1729733112960,0.002,67389.0,67382.0,0.237452]
[1729733113182,0.002,67389.0,67388.0,0.44518]
[1729733113597,0.002,67391.0,67388.0,0.44518]
[1729733113829,0.12071,67391.0,67388.0,0.44518]
[1729733114039,0.120713,67389.0,67388.0,0.44518]
[1729733114686,0.125713,67389.0,67388.0,0.44518]
[1729733115757,0.321813,67389.0,67388.0,0.44518]
[1729733118508,0.54435007,67389.0,67388.0,0.44518]
[1729733118714,0.62479536,67389.0,67388.0,0.44518]
[1729733118929,0.58231681,67389.0,67388.0,0.44518]
[1729733119140,0.58731681,67389.0,67388.0,0.44518]
[1729733119353,0.66551681,67389.0,67388.0,0.44518]
[1729733120242,0.70977404,67389.0,67388.0,0.44518]
[1729733120445,0.66051681,67389.0,67388.0,0.44518]
[1729733123554,0.66551681,67389.0,67388.0,0.44518]
[1729733125317,0.66051681,67389.0,67388.0,0.44518]
[1729733130132,0.38621681,67389.0,67388.0,0.44518]
[1729733130371,0.235713,67389.0,67388.0,0.44518]
[1729733130510,0.231713,67389.0,67388.0,0.446006]
[1729733130912,0.23393917,67389.0,67388.0,0.446006]
[1729733134964,0.38444298,67389.0,67388.0,0.446006]
[1729733135163,0.64354298,67389.0,67388.0,0.446006]
[1729733135423,0.79904679,67389.0,67388.0,0.446006]
[1729733135784,0.64854298,67389.0,67388.0,0.446006]
[1729733136186,0.64354298,67389.0,67388.0,0.446006]
[1729733136594,0.63854298,67389.0,67388.0,0.446006]
[1729733136823,0.64354298,67389.0,67388.0,0.446006]
[1729733138304,0.87108005,67389.0,67388.0,0.446006]
[1729733138524,0.64854298,67389.0,67388.0,0.446006]
[1729733140389,0.64354298,67389.0,67388.0,0.446006]
[1729733140628,0.64854298,67389.0,67388.0,0.446006]
[1729733142518,0.64354298,67389.0,67388.0,0.446006]
[1729733143651,0.64519498,67389.0,67388.0,0.446006]
[1729733145423,0.68945221,67389.0,67388.0,0.446006]
[1729733145921,0.43035221,67389.0,67388.0,0.446006]
[1729733147257,0.38609498,67389.0,67388.0,0.446006]
[1729733148299,0.45248083,67389.0,67388.0,0.446006]
[1729733148913,0.38609498,67389.0,67388.0,0.446006]
[1729733149133,0.43038271,67389.0,67388.0,0.446006]
[1729733149320,0.45248083,67389.0,67388.0,0.446006]
[1729733150349,0.6384537,67389.0,67388.0,0.446006]
[1729733150547,0.54977308,67389.0,67388.0,0.446006]
[1729733150790,0.45260453,67389.0,67388.0,0.446006]
[1729733151102,0.38609498,67389.0,67388.0,0.446006]
[1729733151308,0.63855629,67389.0,67388.0,0.446006]
[1729733152135,0.54987567,67389.0,67388.0,0.446006]
[1729733152743,0.66072645,67389.0,67388.0,0.446006]
[1729733154174,0.54987567,67389.0,67388.0,0.446006]
[1729733154998,0.66091163,67389.0,67388.0,0.446006]
[1729733155200,0.55004337,67389.0,67388.0,0.446006]
[1729733157539,0.68328396,67389.0,67388.0,0.446006]
[1729733157981,0.55004337,67389.0,67388.0,0.446006]
[1729733158480,0.68328396,67389.0,67388.0,0.446006]
[1729733159366,0.55004337,67389.0,67388.0,0.446006]
[1729733160163,0.68352126,67389.0,67388.0,0.446006]
[1729733160381,0.39953956,67389.0,67388.0,0.446006]
[1729733160585,0.29953956,67389.0,67388.0,0.446006]
[1729733161918,0.39953956,67389.0,67388.0,0.446006]
[1729733162133,0.38453956,67389.0,67388.0,0.446006]
[1729733162363,0.38953956,67389.0,67388.0,0.522806]
[1729733162822,0.50079194,67389.0,67388.0,0.522806]
[1729733163051,0.50079139,67389.0,67388.0,0.522806]
[1729733163284,0.50079139,67389.0,67388.0,0.446006]
[1729733163285,0.72832843,67389.0,67388.0,0.446006]
[1729733163533,0.39264459,67389.0,67388.0,0.446006]
[1729733163754,0.39764459,67389.0,67388.0,0.446006]
[1729733168759,0.39487083,67389.0,67388.0,0.446006]
[1729733168962,0.39987083,67389.0,67388.0,0.446006]
[1729733172154,0.55037464,67389.0,67388.0,0.446006]
[1729733172363,0.55037464,67389.0,67388.0,0.38564938]
[1729733172364,1.14813945,67389.0,67388.0,0.38564938]
[1729733172602,0.84577464,67389.0,67388.0,0.38564938]
[1729733172792,0.84377464,67389.0,67388.0,0.38564938]
[1729733177346,0.84577464,67389.0,67388.0,0.38564938]
[1729733178062,0.67926881,67389.0,67388.0,0.38564938]
[1729733178283,0.84367972,67389.0,67388.0,0.38564938]
[1729733178692,0.92313409,67389.0,67388.0,0.38564938]
[1729733178901,0.92113409,67389.0,67388.0,0.38564938]
[1729733179745,0.92313409,67389.0,67388.0,0.38564938]
[1729733180991,0.92113409,67389.0,67388.0,0.38564938]
[1729733181675,0.84145314,67389.0,67388.0,0.38564938]
[1729733182317,1.03758737,67389.0,67388.0,0.26693338]
[1729733182521,0.86867972,67389.0,67388.0,0.26693338]
[1729733182737,0.86867972,67389.0,67388.0,0.20757538]
[1729733182949,1.03758737,67389.0,67388.0,0.11853838]
[1729733183195,0.173719,67386.0,67378.0,0.005825]
[1729733183416,0.250741,67373.0,67372.0,1.80407262]
[1729733183633,0.250741,67373.0,67372.0,1.48226773]
[1729733183634,1.19724444,67373.0,67372.0,1.48226773]
[1729733183853,1.02833679,67373.0,67372.0,1.48226773]
[1729733184098,1.02833679,67373.0,67372.0,1.36352373]
[1729733184319,1.02633679,67373.0,67372.0,1.36352373]
[1729733185811,1.02833679,67373.0,67372.0,1.36352373]
[1729733186646,1.03210614,67373.0,67372.0,1.36352373]
[1729733186853,1.0343334,67373.0,67372.0,1.36352373]
[1729733187274,1.1574623,67373.0,67372.0,1.36352373]
[1729733189224,1.0343334,67373.0,67372.0,1.11517324]
[1729733189449,1.0343334,67373.0,67372.0,1.00942614]
[1729733189665,1.0343334,67373.0,67372.0,0.97974014]
[1729733190864,1.0343334,67373.0,67372.0,0.83282214]
[1729733191083,1.0343334,67373.0,67372.0,0.77413614]
[1729733191320,1.3182034,67373.0,67372.0,0.7495293]
[1729733191569,1.31791481,67373.0,67372.0,0.71283006]
[1729733191816,1.18483721,67373.0,67372.0,0.71283006]
[1729733192047,1.18483721,67373.0,67372.0,0.65345806]
[1729733192270,1.31791481,67373.0,67372.0,0.56440006]
[1729733192539,1.31791481,67373.0,67362.0,0.000826]
[1729733192540,0.426,67363.0,67362.0,0.000826]
[1729733192787,1.02835479,67363.0,67362.0,0.000826]
[1729733192986,1.19726244,67363.0,67362.0,0.000826]
[1729733193508,1.28831252,67363.0,67362.0,0.000826]
[1729733194884,1.37693112,67363.0,67362.0,0.000826]
[1729733195510,1.28831252,67363.0,67362.0,0.000826]
[1729733195731,1.37693112,67363.0,67362.0,0.000826]
[1729733196163,0.01,67343.0,67339.0,0.08296867]
[1729733196395,0.37929781,67343.0,67339.0,0.08296867]
[1729733196676,0.2238,67340.0,67339.0,0.00026867]
[1729733196896,0.55543955,67340.0,67339.0,0.00026867]
[1729733199562,0.68296091,67340.0,67339.0,0.00026867]
[1729733199773,0.55543955,67340.0,67339.0,0.00026867]
[1729733200005,0.1,67339.0,67328.0,0.07964667]
[1729733200213,0.218819,67329.0,67328.0,0.07964667]
[1729733201116,0.223819,67329.0,67328.0,0.07964667]
[1729733201326,0.37432281,67329.0,67328.0,0.07964667]
[1729733201747,0.223819,67329.0,67328.0,0.07964667]
[1729733202186,0.123819,67329.0,67328.0,0.07964667]
[1729733202421,0.123819,67329.0,67328.0,0.08047267]
[1729733207313,0.123819,67329.0,67328.0,0.000826]
[1729733207761,0.27432281,67329.0,67328.0,0.000826]
[1729733207960,0.38432281,67329.0,67328.0,0.000826]
[1729733209300,0.38932281,67329.0,67328.0,0.000826]
[1729733209731,0.47132281,67329.0,67328.0,0.000826]
[1729733211190,0.51689794,67329.0,67328.0,0.000826]
[1729733211440,0.47332281,67329.0,67328.0,0.000826]
[1729733212086,0.65223046,67329.0,67328.0,0.000826]
[1729733212318,0.63382662,67329.0,67328.0,0.000826]
[1729733212530,0.02,67322.0,67321.0,2.6]
[1729733212737,0.55824246,67322.0,67321.0,2.6]
[1729733213367,0.56024246,67322.0,67321.0,2.6]
[1729733213804,0.55824246,67322.0,67321.0,2.6]
[1729733215683,0.56207011,67322.0,67321.0,2.6]
[1729733215889,0.73097776,67322.0,67321.0,2.6]
[1729733216066,0.56207011,67322.0,67321.0,2.6]
[1729733216736,0.73097776,67322.0,67321.0,2.6]
[1729733217416,0.74297776,67322.0,67321.0,2.6]
[1729733217825,0.74097776,67322.0,67321.0,2.6]
[1729733219125,0.89169956,67322.0,67321.0,2.6]
[1729733219342,0.74097776,67322.0,67321.0,2.6]
[1729733219817,0.74297776,67322.0,67321.0,2.6]
[1729733220001,0.74097776,67322.0,67321.0,2.6]
[1729733220411,0.74097776,67322.0,67321.0,2.18774926]
[1729733220647,0.74297776,67322.0,67321.0,2.18774926]
[1729733220980,1.00617776,67322.0,67321.0,2.18774926]
[1729733221639,1.02248016,67322.0,67321.0,2.18774926]
[1729733222192,1.00417776,67322.0,67321.0,2.18774926]
[1729733222421,1.00617776,67322.0,67321.0,2.18774926]
[1729733223027,1.00417776,67322.0,67321.0,2.18774926]
[1729733224658,0.74097776,67322.0,67321.0,2.18774926]
[1729733226371,0.74097776,67322.0,67321.0,2.18857626]
[1729733226798,0.74263176,67322.0,67321.0,2.18857626]
[1729733228662,0.73763176,67322.0,67321.0,2.18857626]
[1729733229080,0.74263176,67322.0,67321.0,2.18857626]
[1729733229772,0.90902958,67322.0,67321.0,1.77632552]
[1729733229985,0.86480689,67322.0,67321.0,1.77632552]
[1729733230212,0.81923176,67322.0,67321.0,1.77632552]
[1729733230630,1.14572728,67322.0,67321.0,1.29268273]
[1729733230843,1.57504934,67322.0,67321.0,0.89533605]
[1729733231054,1.68560606,67322.0,67321.0,0.89533605]
[1729733231294,1.57504934,67322.0,67321.0,0.86633605]
[1729733231695,1.25565901,67322.0,67321.0,0.74750405]
[1729733231830,1.25565901,67322.0,67321.0,0.71779605]
[1729733232236,1.25565901,67322.0,67321.0,0.45145235]
[1729733232237,1.25365901,67322.0,67321.0,0.45145235]
[1729733232519,0.99525901,67322.0,67321.0,0.45145235]
[1729733232706,0.74263176,67322.0,67321.0,0.45145235]
[1729733232925,0.80904611,67322.0,67321.0,0.45145235]
[1729733233130,0.74263176,67322.0,67321.0,0.45145235]
[1729733233287,0.99526108,67322.0,67321.0,0.45145235]
[1729733233491,1.23431531,67322.0,67321.0,0.36232835]
[1729733233813,0.99526108,67322.0,67321.0,0.36232835]
[1729733234455,1.01852703,67322.0,67321.0,0.36232835]
[1729733234657,1.10711607,67322.0,67321.0,0.36232835]
[1729733234862,0.76043938,67322.0,67321.0,0.36232835]
[1729733235037,0.92934703,67322.0,67321.0,0.36232835]
[1729733236115,0.92943919,67322.0,67321.0,0.36232835]
[1729733236513,0.76053154,67322.0,67321.0,0.36232835]
[1729733236735,0.92943919,67322.0,67321.0,0.36232835]
[1729733236950,0.76053154,67322.0,67321.0,0.36232835]
[1729733237155,0.59699006,67322.0,67321.0,0.36232835]
[1729733237374,0.6634623,67322.0,67321.0,0.36232835]
[1729733237816,0.59699006,67322.0,67321.0,0.36232835]
[1729733238021,0.66347766,67322.0,67321.0,0.36232835]
[1729733238225,0.66347759,67322.0,67321.0,0.36232835]
[1729733238645,0.76066167,67322.0,67321.0,0.36232835]
[1729733238887,0.59699006,67322.0,67321.0,0.36232835]
[1729733239088,0.66349759,67322.0,67321.0,0.36232835]
[1729733239491,0.76071071,67322.0,67321.0,0.34331093]
[1729733239873,0.76071065,67322.0,67321.0,0.34331093]
[1729733240083,0.75571065,67322.0,67321.0,0.34331093]
[1729733240279,0.58699006,67322.0,67321.0,0.34331093]
[1729733240644,0.65353907,67322.0,67321.0,0.34331093]
[1729733240845,0.58699006,67322.0,67321.0,0.34331093]
[1729733241476,0.75083015,67322.0,67321.0,0.34331093]
[1729733243147,0.86164271,67322.0,67321.0,0.34331093]
[1729733243551,0.75083015,67322.0,67321.0,0.34331093]
[1729733244190,0.74083015,67322.0,67321.0,0.34331093]
[1729733244379,0.74583015,67322.0,67321.0,0.34331093]
[1729733244597,0.7225642,67322.0,67321.0,0.34331093]
[1729733245731,0.7225642,67322.0,67321.0,0.42241093]
[1729733245732,0.72271123,67322.0,67321.0,0.42241093]
[1729733245942,0.83377127,67322.0,67321.0,0.42241093]
[1729733246165,0.68326746,67322.0,67321.0,0.42241093]
[1729733246993,0.57220742,67322.0,67321.0,0.42241093]
[1729733247673,0.40329977,67322.0,67321.0,0.61141093]
[1729733248165,0.40329977,67322.0,67321.0,0.42241093]
[1729733248382,0.72271123,67322.0,67321.0,0.34331093]
[1729733248850,0.55380358,67322.0,67321.0,0.34331093]
[1729733250477,0.38981646,67322.0,67321.0,0.34331093]
[1729733250734,0.40347355,67322.0,67321.0,0.34331093]
[1729733251355,0.55397736,67322.0,67321.0,0.34331093]
[1729733253430,0.72288501,67322.0,67321.0,0.34331093]
[1729733255051,0.99138501,67322.0,67321.0,0.34331093]
[1729733255249,1.16029266,67322.0,67321.0,0.34331093]
[1729733255502,0.99138501,67322.0,67321.0,0.34331093]
[1729733255755,0.90798501,67322.0,67321.0,0.34331093]
[1729733255873,0.72288501,67322.0,67321.0,0.34331093]
[1729733256075,0.87310021,67322.0,67321.0,0.34331093]
[1729733256927,0.72288501,67322.0,67321.0,0.34331093]
[1729733257140,0.87310021,67322.0,67321.0,0.34331093]
[1729733257998,0.72288501,67322.0,67321.0,0.34331093]
[1729733258203,0.87310021,67322.0,67321.0,0.34331093]
[1729733259778,0.70895055,67322.0,67321.0,0.34331093]
[1729733260098,0.87326072,67322.0,67321.0,0.34331093]
[1729733262606,0.70435307,67322.0,67321.0,0.34331093]
[1729733262810,0.72803428,67322.0,67321.0,0.34331093]
[1729733263765,0.72303428,67322.0,67321.0,0.34331093]
[1729733264601,0.72302486,67322.0,67321.0,0.34331093]
[1729733268804,0.87326403,67322.0,67321.0,0.34331093]
[1729733269423,0.72302486,67322.0,67321.0,0.34331093]
[1729733269656,1.18965352,67322.0,67321.0,0.34331093]
[1729733269861,1.11900808,67322.0,67321.0,0.34331093]
[1729733270061,0.97853251,67322.0,67321.0,0.19477093]
[1729733271305,0.80762486,67322.0,67321.0,0.19477093]
[1729733271712,0.97653251,67322.0,67321.0,0.19477093]
[1729733272672,0.97853251,67322.0,67321.0,0.19477093]
[1729733273080,0.97653251,67322.0,67321.0,0.19477093]
[1729733273532,0.97853251,67322.0,67321.0,0.19477093]
[1729733274026,1.07775009,67322.0,67321.0,0.04623093]
[1729733274611,0.41868,67321.0,67320.0,9.3e-07]
[1729733274820,0.85235514,67321.0,67320.0,9.3e-07]
[1729733276009,0.85035514,67321.0,67320.0,9.3e-07]
[1729733276391,0.85235514,67321.0,67320.0,9.3e-07]
[1729733277179,0.85035514,67321.0,67320.0,9.3e-07]
[1729733277947,0.85235514,67321.0,67320.0,9.3e-07]
[1729733278791,0.85240163,67321.0,67320.0,9.3e-07]
[1729733279219,1.00290544,67321.0,67320.0,9.3e-07]
[1729733279447,0.85040163,67321.0,67320.0,9.3e-07]
[1729733280059,0.85240163,67321.0,67320.0,9.3e-07]
[1729733280343,0.85040163,67321.0,67320.0,9.3e-07]
[1729733280552,0.85240163,67321.0,67320.0,9.3e-07]
[1729733280786,0.85040163,67321.0,67320.0,9.3e-07]
[1729733281217,0.75122163,67321.0,67320.0,9.3e-07]
[1729733281411,0.93012928,67321.0,67320.0,9.3e-07]
[1729733281733,1.30317016,67321.0,67320.0,9.3e-07]
[1729733281938,1.08263309,67321.0,67320.0,9.3e-07]
[1729733282207,1.08265402,67321.0,67320.0,9.3e-07]
[1729733282414,1.08065402,67321.0,67320.0,9.3e-07]
[1729733282619,0.93215021,67321.0,67320.0,9.3e-07]
[1729733282770,0.93015021,67321.0,67320.0,9.3e-07]
[1729733283171,0.73265021,67321.0,67320.0,9.3e-07]
[1729733283972,0.88296404,67321.0,67320.0,9.3e-07]
[1729733284632,0.238856,67308.0,67307.0,0.00037189]
[1729733284828,0.55376556,67308.0,67307.0,0.00037189]
[1729733285234,0.54876556,67308.0,67307.0,0.00037189]
[1729733285726,0.6990748,67308.0,67307.0,0.00037189]
[1729733286169,0.55376556,67308.0,67307.0,0.00037189]
[1729733286374,0.54876556,67308.0,67307.0,0.00037189]
[1729733288740,0.55376556,67308.0,67307.0,0.00037189]
[1729733291219,0.7040748,67308.0,67307.0,0.00037189]
[1729733291446,0.83996913,67308.0,67307.0,0.00037189]
[1729733292310,0.92230929,67308.0,67307.0,0.00037189]
[1729733292918,0.83996913,67308.0,67307.0,0.00037189]
[1729733293126,0.68965989,67308.0,67307.0,0.00037189]
[1729733293329,0.83996913,67308.0,67307.0,0.00037189]
[1729733293736,0.69344858,67308.0,67307.0,0.00037189]
[1729733295099,0.55255425,67308.0,67307.0,0.00037189]
[1729733295330,0.55255425,67308.0,67307.0,0.07977189]
[1729733295755,0.68604427,67308.0,67307.0,0.07977189]
[1729733296127,0.68827335,67308.0,67307.0,0.07977189]
[1729733296327,0.68813572,67308.0,67307.0,0.07977189]
[1729733297112,0.55463995,67308.0,67307.0,0.07977189]
[1729733297514,0.55463995,67308.0,67307.0,0.08059789]
[1729733298367,0.55244686,67308.0,67307.0,0.08059789]
[1729733298573,0.3881485,67308.0,67307.0,0.08059789]
[1729733298773,0.3881485,67308.0,67307.0,0.08784728]
[1729733299020,0.55467078,67308.0,67307.0,0.08784728]
[1729733299516,0.55467078,67308.0,67307.0,0.52631789]
[1729733299932,0.55467078,67308.0,67307.0,0.53356728]
[1729733301604,0.55467078,67308.0,67307.0,0.45416728]
[1729733307821,0.70488182,67308.0,67307.0,0.45416728]
[1729733309480,0.55467078,67308.0,67307.0,0.45416728]
[1729733309680,0.70499348,67308.0,67307.0,0.45416728]
[1729733310021,0.70499348,67308.0,67303.0,0.0177028]
[1729733310022,0.250863,67304.0,67303.0,3.4e-07]
[1729733310226,0.138879,67295.0,67294.0,3.4e-07]
[1729733310426,0.68957046,67295.0,67294.0,3.4e-07]
[1729733310853,0.83746479,67295.0,67294.0,3.4e-07]
[1729733311057,0.85207427,67295.0,67294.0,3.4e-07]
[1729733311301,0.9879686,67295.0,67294.0,3.4e-07]
[1729733311503,0.85207427,67295.0,67294.0,3.4e-07]
[1729733311705,0.8753484,67295.0,67294.0,3.4e-07]
[1729733312283,1.10053273,67295.0,67294.0,3.4e-07]